lending/lending_fUSD_20260317
["ID","MTS","AMOUNT","RATE_DAILY","PERIOD"]
[408491601,1773748238116,-500.0,0.00012143,2]
[408491602,1773748238126,-500.0,0.00012143,2]
[408491603,1773748238136,-500.0,0.00012143,2]
[408491604,1773748238145,-500.0,0.00012143,2]
[408491605,1773748238155,-500.0,0.00012143,2]
[408491606,1773748238165,-500.0,0.00012143,2]
[408491607,1773748238175,-500.0,0.00012143,2]
[408491608,1773748238185,-500.0,0.00012143,2]
[408491609,1773748238195,-500.0,0.00012143,2]
[408491610,1773748238205,-500.0,0.00012143,2]
[408491611,1773748238215,-500.0,0.00012143,2]
[408491612,1773748238376,-500.0,0.00012143,2]
[408491613,1773748238389,-593.84009572,0.00012143,2]
[408491614,1773748238404,-500.0,0.00012143,2]
[408491615,1773748238414,-500.0,0.00012143,2]
[408491616,1773748238423,-1941499.43125161,0.00012144,2]
[408491617,1773748238433,-664.24907836,0.00012145,2]
[408491618,1773748238443,-1500000.0,0.00012155,2]
[408491619,1773748238452,-500.4240839,0.00012173,2]
[408491620,1773748238461,-500.0,0.00012173,2]
[408491621,1773748238471,-503.60180879,0.00012173,2]
[408491622,1773748238481,-193.0,0.00012225,2]
[408491623,1773748238491,-11561.73687662,0.00012244,2]
[408491624,1773748238500,-153.25761504,0.00012248,2]
[408491625,1773748238510,-150.0,0.00012253,2]
[408491626,1773748238519,-2500.0,0.00012254,2]
[408491627,1773748238529,-171.603,0.00012254,2]
[408491628,1773748238538,-1514.035,0.00012254,2]
[408491629,1773748238547,-16140.79964821,0.00012254,2]
[408491630,1773748238556,-32966.233,0.00012255,2]
[408491631,1773748238565,-2378.22449109,0.00012261,2]
[408491632,1773748238575,-320.96072028,0.00012261,2]
[408491633,1773748238585,-30869.01135907,0.00012261,2]
[408491634,1773748238594,-1280.3223863,0.00012261,2]
[408491635,1773748238603,-2751.62945654,0.00012261,2]
[408491636,1773748238612,-420.0,0.00012265,2]
[408491637,1773748238621,-300.0,0.00012265,2]
[408491638,1773748238630,-1680.0,0.00012279,2]
[408491639,1773748238640,-151.0,0.00012348,2]
[408491640,1773748238649,-151.0,0.00012348,2]
[408491641,1773748238659,-151.0,0.00012348,2]
[408491642,1773748238668,-151.0,0.00012348,2]
[408491643,1773748238677,-151.0,0.00012348,2]
[408491644,1773748238686,-151.0,0.00012348,2]
[408491645,1773748238695,-151.0,0.00012348,2]
[408491646,1773748238705,-151.0,0.00012348,2]
[408491647,1773748238714,-151.0,0.00012348,2]
[408491648,1773748238723,-151.0,0.00012348,2]
[408491649,1773748238733,-151.0,0.00012348,2]
[408491650,1773748238742,-151.0,0.00012348,2]
[408491651,1773748238751,-151.0,0.00012348,2]
[408491652,1773748238760,-151.0,0.00012348,2]
[408491653,1773748238769,-151.0,0.00012348,2]
[408491654,1773748238779,-151.0,0.00012348,2]
[408491655,1773748238788,-151.0,0.00012348,2]
[408491656,1773748238797,-151.0,0.00012348,2]
[408491657,1773748238807,-151.0,0.00012348,2]
[408491658,1773748238816,-151.0,0.00012348,2]
[408491659,1773748238825,-569.38,0.00012348,2]
[408491660,1773748238834,-500.0,0.00012354,2]
[408491661,1773748238844,-17367.4294412,0.00012361,2]
[408491662,1773748238853,-3133.9633848,0.00012362,2]
[408491663,1773748238862,-21732.60343593,0.00012362,2]
[408491666,1773748240108,-7407.2,0.00012362,2]
[408491667,1773748240215,-892.58445457,0.00012362,2]
[408491668,1773748240225,-150.0,0.00012371,2]
[408491669,1773748240235,-298.239919,0.00012373,2]
[408491670,1773748240246,-501.0153481,0.00012373,2]
[408491671,1773748240257,-500.0,0.00012373,2]
[408491672,1773748240267,-500.0,0.00012373,2]
[408491673,1773748240277,-500.0,0.00012373,2]
[408491674,1773748240287,-500.0,0.00012373,2]
[408491675,1773748240298,-500.0,0.00012373,2]
[408491676,1773748240308,-500.0,0.00012373,2]
[408491677,1773748240317,-500.0,0.00012373,2]
[408491678,1773748240327,-500.0,0.00012373,2]
[408491679,1773748240343,-500.0,0.00012373,2]
[408491680,1773748240355,-163.51,0.00012385,2]
[408491681,1773748240365,-329.17362844,0.00012419,2]
[408491682,1773748240375,-151.0,0.00012469,2]
[408491683,1773748240385,-151.0,0.00012469,2]
[408491684,1773748240396,-1000.0,0.00012519,2]
[408491685,1773748240405,-673.42752402,0.00012538,2]
[408491686,1773748240417,-4326.57247598,0.00012538,2]
[408491687,1773748240427,-250.0,0.00012538,2]
[408491688,1773748240437,-4370.64631875,0.00012538,2]
[408491689,1773748240448,-629.35368125,0.00012538,2]
[408491690,1773748240458,-5000.0,0.00012538,2]
[408491691,1773748240469,-250.0,0.00012538,2]
[408491693,1773748240481,-193.0,0.00012538,2]
[408491694,1773748240490,-871.0,0.00012545,2]
[408491696,1773748240499,-420.0,0.00012584,2]
[408491698,1773748240508,-500.0,0.00012606,2]
[408491700,1773748240518,-151.0,0.00012616,2]
[408491702,1773748240527,-183.4648665,0.00012616,2]
[408491705,1773748240545,-183.4648665,0.00012616,2]
[408491707,1773748240556,-562.50045037,0.00012618,2]
[408491709,1773748240568,-4963.05954963,0.00012618,2]
[408491711,1773748240578,-4114.48911189,0.00012619,2]
[408491717,1773748240642,-8694.19538087,0.00012619,2]
[408491718,1773748240656,-6275.44125084,0.00012619,2]
[408491719,1773748240668,-783.4560477,0.00012619,2]
[408491727,1773748242904,-1867.03752048,0.00012619,2]
[408491742,1773748267983,5000.01,7.945e-05,2]
[408491743,1773748268011,7794.32082,7.945e-05,2]
[408491744,1773748378473,1791.07,5.849e-05,2]
[408491745,1773748378682,1791.07,6.156e-05,2]
[408491746,1773748378883,1417.87,6.464e-05,2]
[408491747,1773748378910,373.2,6.464e-05,2]
[408491748,1773748379085,1791.07,6.772e-05,2]
[408491749,1773748379292,1791.07,7.08e-05,2]
[408491750,1773748379499,1791.07,7.388e-05,2]
[408491751,1773748379715,1467.839098,7.695e-05,2]
[408491752,1773748379740,323.230902,7.695e-05,2]
[408491753,1773748379934,1791.07,8.003e-05,2]
[408491754,1773748380154,1791.07,8.311e-05,2]
[408491755,1773748380576,1791.07,8.619e-05,2]
[408491756,1773748380615,1791.07,8.927e-05,2]
[408491757,1773748380770,1791.07,9.234e-05,2]
[408491758,1773748435364,176.66,8.736e-05,2]
[408491759,1773748444424,200.0,8.4e-05,2]
[408491766,1773748554609,158.85,0.00030411,120]
[408491773,1773748724083,200.0,9e-05,2]
[408491841,1773748775838,270.47144907,0.0003287,120]
[408491852,1773748881691,423.21529901,0.0003287,120]
[408491853,1773748899913,1000.0,0.00032876,120]
[408491855,1773748939970,393.51878355,7.888e-05,2]
[408491856,1773748948650,488.18246078,0.00029,120]
[408491857,1773748956225,153.4866318,0.0003,120]
[408491858,1773748959118,163.32888711,0.00031,120]
[408491859,1773748959501,26447.39070846,9.5e-05,3]
[408491860,1773748959525,12773.00169287,9.5e-05,3]
[408491861,1773748961700,192.35624631,0.0003,120]
[408491862,1773748968072,719.44573251,0.000328,120]
[408491863,1773748976267,604.899317,9.482e-05,2]
[408491867,1773749069885,1413.893408,0.00032,120]
[408491870,1773749126754,5000.0,0.00032,120]
[408491871,1773749138902,2731.21,0.00032877,120]
[408491872,1773749138992,-202.99306769,9.53e-05,2]
[408491876,1773749190902,5000.0,0.000328,120]
[408491877,1773749202139,5000.0,0.000328,120]
[408491878,1773749211622,200.0,9.392e-05,2]
[408491879,1773749226844,400.0,0.000107,3]
[408491880,1773749228971,800.0,0.000108,3]
[408491881,1773749231040,1200.0,0.000109,3]
[408491882,1773749255128,10000.0,0.00032877,120]
[408491883,1773749259613,10000.0,0.00032877,120]
[408491884,1773749274976,2682.9,9.278e-05,2]
[408491885,1773749339002,1863.0,0.000328,120]
[408491886,1773749372851,19456.05,9.168e-05,2]
[408491887,1773749405152,500.0,9.124e-05,2]
[408491910,1773749431791,-229.0,9.53e-05,2]
[408491911,1773749431801,-250.0,9.53e-05,2]
[408491912,1773749431811,-251.31407913,9.542e-05,2]
[408491913,1773749431824,-925.33002831,9.542e-05,2]
[408491914,1773749431902,-614.42589256,9.542e-05,2]
[408491915,1773749431914,-211.42755079,9.592e-05,2]
[408491916,1773749431924,-174.14655665,9.592e-05,2]
[408491917,1773749431937,-75.85344335,9.592e-05,2]
[408491918,1773749431946,-270.99458837,9.728e-05,2]
[408491919,1773749431957,-501.0,9.728e-05,2]
[408491920,1773749431973,-500.0,9.728e-05,2]
[408491921,1773749431984,-315.06541163,9.728e-05,2]
[408491922,1773749431993,-29.17366697,9.782e-05,2]
[408491923,1773749432004,-270.82633303,9.782e-05,2]
[408491924,1773749432013,-564.78184551,9.782e-05,2]
[408491925,1773749432025,-635.21815449,9.782e-05,2]
[408491926,1773749432035,-300.0,9.782e-05,2]
[408491927,1773749432044,-500.0,9.783e-05,2]
[408491928,1773749432053,-500.0,9.783e-05,2]
[408491929,1773749432064,-500.0,9.783e-05,2]
[408491930,1773749432073,-500.0,9.783e-05,2]
[408491931,1773749432083,-500.0,9.783e-05,2]
[408491932,1773749432096,-500.0,9.783e-05,2]
[408491933,1773749432106,-503.60180879,9.783e-05,2]
[408491934,1773749432118,-500.0,9.783e-05,2]
[408491935,1773749432129,-500.4240839,9.783e-05,2]
[408491936,1773749432139,-300.0,9.795e-05,2]
[408491937,1773749432149,-11561.73687662,9.797e-05,2]
[408491938,1773749432159,-150.0,9.805e-05,2]
[408491939,1773749432168,-211.42755078,9.806e-05,2]
[408491940,1773749432178,-500.0,9.806e-05,2]
[408491941,1773749432190,-270148.68417545,9.807e-05,2]
[408491942,1773749432203,-31382.939328,9.807e-05,2]
[408491943,1773749432215,-27660.94649655,9.807e-05,2]
[408491944,1773749432227,-153.25761504,9.85e-05,2]
[408491945,1773749432237,-1791.07,9.85e-05,2]
[408491946,1773749432247,-13008.12886856,9.909e-05,2]
[408491947,1773749432258,-6851.58113144,9.909e-05,2]
[408491948,1773749432268,-500.0,9.928e-05,2]
[408491949,1773749432279,-217.67,9.948e-05,2]
[408491950,1773749432293,-1942.10914178,0.0001,2]
[408491951,1773749432302,-2439.37655314,0.0001,2]
[408491952,1773749432312,-3786.53880293,0.0001,2]
[408491953,1773749432325,-354.13032847,0.0001,2]
[408491954,1773749432345,-456.50541151,0.0001,2]
[408491960,1773749437908,-8103.64536798,0.0001,2]
[408491961,1773749437918,-278.08595037,0.0001,2]
[408491962,1773749437929,-278.08595037,0.0001,2]
[408491963,1773749437939,-278.08595037,0.0001,2]
[408491964,1773749437948,-1547.56728961,0.0001,2]
[408491965,1773749437958,-153.3639184,0.0001,2]
[408491966,1773749437968,-500.0,0.0001008,2]
[408491967,1773749437978,-1791.07,0.00010158,2]
[408491968,1773749437988,-500.0,0.00010253,2]
[408491969,1773749438000,-500.0,0.00010253,2]
[408491970,1773749438010,-200.0,0.00010253,2]
[408491971,1773749438020,-500.0,0.00010253,2]
[408491972,1773749438030,-500.0,0.00010253,2]
[408491973,1773749438039,-500.0,0.00010253,2]
[408491974,1773749438049,-500.0,0.00010253,2]
[408491975,1773749438062,-500.0,0.00010253,2]
[408491976,1773749438071,-500.0,0.00010253,2]
[408491977,1773749438081,-434.959087,0.00010253,2]
[408491978,1773749438090,-151.0,0.00010253,2]
[408491979,1773749438100,-151.0,0.00010253,2]
[408491980,1773749438109,-151.0,0.00010253,2]
[408491981,1773749438118,-151.0,0.00010253,2]
[408491982,1773749438128,-151.0,0.00010253,2]
[408491983,1773749438138,-151.0,0.00010253,2]
[408491984,1773749438147,-151.0,0.00010253,2]
[408491985,1773749438158,-151.0,0.00010253,2]
[408491986,1773749438168,-151.0,0.00010253,2]
[408491987,1773749438177,-151.0,0.00010253,2]
[408491988,1773749438188,-151.0,0.00010253,2]
[408491989,1773749438197,-151.0,0.00010253,2]
[408491990,1773749438207,-151.0,0.00010253,2]
[408491991,1773749438217,-151.0,0.00010253,2]
[408491992,1773749438227,-151.0,0.00010253,2]
[408491993,1773749438237,-151.0,0.00010253,2]
[408491994,1773749438248,-151.0,0.00010253,2]
[408491995,1773749438262,-151.0,0.00010253,2]
[408491996,1773749438272,-151.0,0.00010253,2]
[408491997,1773749438283,-151.0,0.00010253,2]
[408491998,1773749438293,-151.0,0.00010253,2]
[408491999,1773749438303,-151.0,0.00010253,2]
[408492000,1773749438313,-151.0,0.00010253,2]
[408492001,1773749438324,-151.0,0.00010253,2]
[408492002,1773749438334,-151.0,0.00010253,2]
[408492003,1773749438344,-151.0,0.00010253,2]
[408492004,1773749438355,-151.0,0.00010253,2]
[408492005,1773749438365,-151.0,0.00010253,2]
[408492006,1773749438375,-151.0,0.00010253,2]
[408492007,1773749438385,-151.0,0.00010253,2]
[408492009,1773749438395,-151.0,0.00010253,2]
[408492011,1773749438405,-151.0,0.00010253,2]
[408492013,1773749438415,-4246.85,0.0001026,2]
[408492014,1773749438424,-1000.0,0.00010331,2]
[408492015,1773749438433,-1000.0,0.00010331,2]
[408492017,1773749438443,-1000.0,0.00010331,2]
[408492018,1773749438456,-1000.0,0.00010331,2]
[408492019,1773749438467,-500.0,0.00010354,2]
[408492020,1773749438478,-1791.07,0.00010466,2]
[408492021,1773749438488,-250.0,0.00010483,2]
[408492022,1773749438497,-258.67,0.000105,2]
[408492023,1773749438507,-500.0,0.00010628,2]
[408492024,1773749438516,-269.78513475,0.000107,2]
[408492025,1773749438526,-420.0,0.0001076,2]
[408492026,1773749438535,-1680.0,0.0001076,2]
[408492027,1773749438546,-1791.07,0.00010773,2]
[408492028,1773749438555,-420.0,0.00010775,2]
[408492029,1773749438565,-255.0,0.00010786,2]
[408492030,1773749438575,-1033.57883525,0.000108,2]
[408492031,1773749438584,-200.0,0.00010801,2]
[408492032,1773749438594,-1500.0,0.00010878,2]
[408492033,1773749438604,-1500.0,0.00010878,2]
[408492034,1773749438613,-616.65595871,0.00010878,2]
[408492035,1773749438624,-3429.83568101,0.000109,2]
[408492036,1773749438634,-3429.83568096,0.00010914,2]
[408492037,1773749438644,-9476.59980119,0.00011,2]
[408492038,1773749438657,-500.0,0.00011014,2]
[408492039,1773749438666,-1791.07,0.00011081,2]
[408492040,1773749438676,-14454.03335859,0.00011099,2]
[408492041,1773749438685,-14454.03335851,0.00011099,2]
[408492042,1773749438695,-16218.12381646,0.00011099,2]
[408492043,1773749438705,-16218.12381639,0.00011099,2]
[408492044,1773749438718,-638.08046131,0.000111,2]
[408492045,1773749438728,-1398.79856261,0.000111,2]
[408492046,1773749438738,-194.08,0.00011247,2]
[408492047,1773749438748,-14454.03335851,0.00011271,2]
[408492048,1773749438759,-16218.12381639,0.00011271,2]
[408492049,1773749438768,-500.0,0.00011273,2]
[408492050,1773749438778,-500.0,0.00011273,2]
[408492051,1773749438790,-895.67730319,0.00011288,2]
[408492052,1773749438800,-219.44908562,0.00011289,2]
[408492053,1773749438810,-151.0,0.00011295,2]
[408492054,1773749438819,-155.0,0.00011296,2]
[408492055,1773749438830,-1790015.0706,0.00011298,2]
[408492056,1773749438839,-200.0,0.00011349,2]
[408492057,1773749438855,-1791.07,0.00011389,2]
[408492058,1773749438866,-2000.0,0.00011426,2]
[408492059,1773749438876,-505.33275983,0.00011426,2]
[408492060,1773749438886,-308.93982652,0.00011611,2]
[408492061,1773749438896,-1791.07,0.00011697,2]
[408492062,1773749438906,-1600.0,0.000118,4]
[408492063,1773749438915,-1000.0,0.00011821,2]
[408492064,1773749438924,-587.0,0.00011836,2]
[408492065,1773749438934,-2351.0,0.00011836,2]
[408492066,1773749438943,-587.0,0.00011852,2]
[408492067,1773749438953,-1460.0,0.00011864,5]
[408492068,1773749438962,-433.0,0.00011865,2]
[408492069,1773749438972,-200.0,0.00011897,2]
[408492070,1773749438985,-2000.0,0.000119,4]
[408492071,1773749438994,-2500.0,0.00011974,2]
[408492072,1773749439004,-14454.03335851,0.00012032,2]
[408492073,1773749439013,-16218.12381639,0.00012032,2]
[408492074,1773749439023,-32966.233,0.00012044,2]
[408492075,1773749439033,-1000.0,0.00012044,2]
[408492076,1773749439043,-500.0,0.00012055,2]
[408492077,1773749439055,-1191.71962026,0.00012055,2]
[408492078,1773749439064,-3429.83568096,0.00012079,2]
[408492079,1773749439074,-151.0,0.00012152,2]
[408492080,1773749439083,-656.8,0.000122,2]
[408492081,1773749439093,-1500.0,0.00012368,2]
[408492082,1773749439103,-320.96072028,0.000124,2]
[408492083,1773749439112,-3726.19436658,0.000124,2]
[408492084,1773749439122,-1423.94648695,0.000124,2]
[408492085,1773749439132,-155.0,0.00012426,2]
[408492086,1773749439142,-200.0,0.00012445,2]
[408492087,1773749439152,-80036.6338067,0.00012457,2]
[408492088,1773749439161,-56616.1888294,0.00012457,2]
[408492089,1773749439170,-3133.9633848,0.00012462,2]
[408492090,1773749439179,-476809.2639943,0.00012462,2]
[408492091,1773749439189,-309.31476264,0.000125,2]
[408492092,1773749439199,-1000.0,0.00012522,2]
[408492093,1773749439209,-2000.0,0.00012619,2]
[408492094,1773749439218,-200.0,0.00012619,2]
[408492095,1773749439228,-173.48283678,0.00012619,2]
[408492096,1773749439237,-151.0,0.00012619,2]
[408492097,1773749439247,-3536.6,0.0001267,2]
[408492098,1773749439256,-500.0,0.00012688,2]
[408492099,1773749439266,-500.0,0.00012688,2]
[408492100,1773749439276,-250.0,0.00012688,2]
[408492101,1773749439285,-249.15761797,0.00012688,2]
[408492102,1773749439295,-250.0,0.00012688,2]
[408492103,1773749439304,-250.0,0.00012688,2]
[408492104,1773749439314,-250.0,0.00012688,2]
[408492105,1773749439324,-250.0,0.00012688,2]
[408492106,1773749439334,-750.0,0.00012688,2]
[408492107,1773749439344,-250.0,0.00012688,2]
[408492108,1773749439353,-750.0,0.00012688,2]
[408492109,1773749439363,-250.0,0.00012688,2]
[408492110,1773749439372,-750.0,0.00012688,2]
[408492111,1773749439381,-250.0,0.00012688,2]
[408492112,1773749439391,-500.0,0.00012688,2]
[408492113,1773749439400,-750.0,0.00012688,2]
[408492114,1773749439410,-250.0,0.00012688,2]
[408492115,1773749439419,-500.0,0.00012688,2]
[408492116,1773749439428,-500.0,0.00012688,2]
[408492117,1773749439438,-750.0,0.00012688,2]
[408492118,1773749439447,-276.33319812,0.00012688,2]
[408492119,1773749439457,-534.48592052,0.00012688,2]
[408492120,1773749439466,-500.0,0.00012688,2]
[408492121,1773749439476,-750.0,0.00012688,2]
[408492122,1773749439486,-500.0,0.00012688,2]
[408492123,1773749439496,-750.0,0.00012688,2]
[408492124,1773749439505,-500.0,0.00012688,2]
[408492125,1773749439514,-750.0,0.00012688,2]
[408492126,1773749439524,-500.0,0.00012688,2]
[408492127,1773749439534,-750.0,0.00012688,2]
[408492128,1773749439544,-250.0,0.00012688,2]
[408492129,1773749439554,-500.0,0.00012688,2]
[408492130,1773749439563,-750.0,0.00012688,2]
[408492131,1773749439574,-250.0,0.00012688,2]
[408492132,1773749439583,-500.0,0.00012688,2]
[408492133,1773749439592,-750.0,0.00012688,2]
[408492134,1773749439602,-250.0,0.00012688,2]
[408492135,1773749439611,-500.0,0.00012688,2]
[408492136,1773749439621,-250.0,0.00012688,2]
[408492137,1773749439631,-750.0,0.00012688,2]
[408492138,1773749439643,-500.0,0.00012688,2]
[408492139,1773749439653,-250.0,0.00012688,2]
[408492140,1773749439663,-500.0,0.00012688,2]
[408492141,1773749439674,-250.0,0.00012688,2]
[408492142,1773749439683,-500.0,0.00012688,2]
[408492143,1773749439693,-250.0,0.00012688,2]
[408492144,1773749439704,-265.71968937,0.00012688,2]
[408492145,1773749439718,-250.0,0.00012688,2]
[408492146,1773749439727,-250.0,0.00012688,2]
[408492147,1773749439737,-269.00463473,0.00012688,2]
[408492148,1773749439750,-151.0,0.00012688,2]
[408492149,1773749439759,-156.587,0.00012688,2]
[408492150,1773749439770,-193.9920317,0.00012688,2]
[408492151,1773749439780,-169.57265412,0.00012688,2]
[408492152,1773749439792,-500.0,0.00012688,2]
[408492153,1773749439802,-500.0,0.00012688,2]
[408492154,1773749439812,-500.0,0.00012688,2]
[408492155,1773749439821,-500.0,0.00012688,2]
[408492156,1773749439830,-500.0,0.00012688,2]
[408492157,1773749439840,-500.0,0.00012688,2]
[408492158,1773749439850,-500.0,0.00012688,2]
[408492159,1773749439859,-500.0,0.00012688,2]
[408492160,1773749439869,-500.0,0.00012688,2]
[408492161,1773749439879,-566.02454488,0.00012688,2]
[408492162,1773749439888,-500.0,0.00012743,2]
[408492163,1773749439898,-1319.21296274,0.00012745,2]
[408492164,1773749439909,-200.0,0.00012745,2]
[408492165,1773749440041,-160.0,0.00012758,2]
[408492167,1773749440050,-501.147218,0.00012758,2]
[408492168,1773749440060,-842.294436,0.00012758,2]
[408492169,1773749440070,-377.774079,0.00012758,2]
[408492170,1773749440079,-160.0,0.00012758,2]
[408492171,1773749440089,-496.602269,0.00012758,2]
[408492172,1773749440098,-833.204539,0.00012758,2]
[408492173,1773749440108,-274.395242,0.00012758,2]
[408492174,1773749440117,-453.27713222,0.00012787,2]
[408492175,1773749440126,-14454.03335851,0.00012792,2]
[408492176,1773749440135,-500.0,0.00012798,2]
[408492177,1773749440144,-2000.0,0.00012817,2]
[408492178,1773749440154,-500.0,0.00012853,2]
[408492179,1773749440163,-200.0,0.00012873,2]
[408492180,1773749440172,-500.0,0.00012908,2]
[408492181,1773749440181,-2000.0,0.00012916,2]
[408492182,1773749440190,-500.0,0.00012963,2]
[408492183,1773749440199,-200.0,0.00012993,2]
[408492184,1773749440210,-5639.93596848,0.00013,2]
[408492185,1773749440219,-200.0,0.00013001,2]
[408492186,1773749440228,-500.0,0.00013018,2]
[408492187,1773749440238,-823.0,0.00013019,2]
[408492188,1773749440247,-3292.0,0.00013019,2]
[408492189,1773749440256,-823.0,0.00013037,2]
[408492190,1773749440265,-5379.70701155,0.0001305,2]
[408492191,1773749440274,-736.0,0.00013051,2]
[408492192,1773749440284,-321.79762182,0.00013068,2]
[408492193,1773749440292,-176.66,0.00013104,2]
[408492194,1773749440301,-200.0,0.00013131,2]
[408492195,1773749440309,-1237.692,0.00013178,2]
[408492196,1773749440317,-923.0,0.00013178,2]
[408492197,1773749440326,-6004.0,0.00013178,2]
[408492198,1773749440336,-414.0,0.00013178,2]
[408492199,1773749440344,-163.51,0.00013211,2]
[408492200,1773749440354,-3429.83568096,0.00013243,2]
[408492201,1773749440363,-929.37600956,0.0001329,2]
[408492202,1773749440372,-2860.0,0.00013397,2]
[408492203,1773749440381,-450.0,0.00013421,2]
[408492204,1773749440391,-450.0,0.00013421,2]
[408492205,1773749440400,-450.0,0.00013421,2]
[408492206,1773749440408,-450.0,0.00013421,2]
[408492207,1773749440417,-450.0,0.00013421,2]
[408492208,1773749440427,-450.0,0.00013421,2]
[408492209,1773749440436,-450.0,0.00013421,2]
[408492210,1773749440446,-500.0,0.00013421,2]
[408492211,1773749440455,-450.0,0.00013421,2]
[408492212,1773749440464,-500.0,0.00013421,2]
[408492213,1773749440473,-450.0,0.00013421,2]
[408492214,1773749440483,-500.0,0.00013421,2]
[408492215,1773749440493,-500.0,0.00013421,2]
[408492216,1773749440502,-450.0,0.00013421,2]
[408492217,1773749440511,-500.0,0.00013421,2]
[408492218,1773749440521,-450.0,0.00013421,2]
[408492219,1773749440529,-500.0,0.00013421,2]
[408492220,1773749440539,-500.0,0.00013421,2]
[408492221,1773749440548,-450.0,0.00013421,2]
[408492222,1773749440557,-500.0,0.00013421,2]
[408492223,1773749440566,-450.0,0.00013421,2]
[408492224,1773749440575,-450.0,0.00013421,2]
[408492225,1773749440586,-450.0,0.00013421,2]
[408492226,1773749440595,-500.0,0.00013421,2]
[408492227,1773749440605,-500.0,0.00013421,2]
[408492228,1773749440614,-450.0,0.00013421,2]
[408492229,1773749440623,-500.0,0.00013421,2]
[408492230,1773749440633,-500.0,0.00013421,2]
[408492231,1773749440643,-500.0,0.00013421,2]
[408492232,1773749440652,-500.0,0.00013421,2]
[408492233,1773749440661,-450.0,0.00013421,2]
[408492234,1773749440671,-500.0,0.00013421,2]
[408492235,1773749440680,-500.0,0.00013421,2]
[408492236,1773749440690,-500.0,0.00013421,2]
[408492237,1773749440699,-500.0,0.00013421,2]
[408492238,1773749440711,-500.0,0.00013421,2]
[408492239,1773749440722,-500.0,0.00013421,2]
[408492240,1773749440731,-500.0,0.00013421,2]
[408492241,1773749440740,-500.0,0.00013421,2]
[408492242,1773749440751,-500.0,0.00013421,2]
[408492243,1773749440760,-450.0,0.00013421,2]
[408492244,1773749440770,-500.0,0.00013421,2]
[408492245,1773749440779,-500.0,0.00013421,2]
[408492246,1773749440791,-500.0,0.00013421,2]
[408492247,1773749440800,-500.0,0.00013421,2]
[408492248,1773749440810,-500.0,0.00013421,2]
[408492249,1773749440820,-500.0,0.00013421,2]
[408492250,1773749440829,-500.0,0.00013421,2]
[408492251,1773749440839,-500.0,0.00013421,2]
[408492252,1773749440848,-500.0,0.00013421,2]
[408492253,1773749440858,-500.0,0.00013421,2]
[408492254,1773749440867,-500.0,0.00013421,2]
[408492255,1773749440877,-500.0,0.00013421,2]
[408492256,1773749440886,-364.43770209,0.00013421,2]
[408492257,1773749440895,-450.0,0.00013421,2]
[408492258,1773749440904,-161.26855318,0.00013421,2]
[408492259,1773749440913,-549.00051861,0.00013421,2]
[408492260,1773749440923,-150.0,0.00013421,2]
[408492261,1773749440933,-212.76778111,0.00013421,2]
[408492262,1773749440942,-258.8616927,0.00013421,2]
[408492263,1773749440951,-450.0,0.00013421,2]
[408492264,1773749440961,-450.0,0.00013421,2]
[408492265,1773749440970,-450.0,0.00013421,2]
[408492266,1773749440978,-450.0,0.00013421,2]
[408492267,1773749440987,-452.0,0.00013421,2]
[408492268,1773749440995,-150.0,0.00013421,2]